fUSD/lending_fUSD_20250301
["ID","MTS","AMOUNT","RATE_DAILY","PERIOD"]
[354959042,1740845596726,-2000.0,0.00042013,120]
[354959043,1740845596752,-508.119298,0.00042013,120]
[354959044,1740845596778,-205.67897,0.00042013,120]
[354959045,1740845596804,-2621.82115355,0.0004218,60]
[354959046,1740845596831,-1900.0,0.0004237,60]
[354959047,1740845596857,-2000.0,0.0004237,60]
[354959048,1740845596883,-777.33,0.00042603,30]
[354959049,1740845596914,-2611.201,0.00042625,120]
[354959050,1740845596941,-2611.201,0.00042625,120]
[354959051,1740845596970,-2611.201,0.00042625,120]
[354959052,1740845596997,-2611.201,0.00042625,120]
[354959053,1740845597023,-2611.201,0.00042625,120]
[354959054,1740845597049,-500.0,0.00042644,60]
[354959055,1740845597076,-5011.69479,0.0004274,30]
[354959056,1740845597102,-150.0,0.0004274,30]
[354959057,1740845597129,-150.0,0.0004274,30]
[354959058,1740845597155,-51236.30002849,0.000428,120]
[354959059,1740845597181,-1000.0,0.00043,120]
[354959060,1740845597207,-702.53384225,0.00043,120]
[354959061,1740845597232,-64612.3598609,0.00043,30]
[354959062,1740845597259,-1061.0,0.0004305,30]
[354959063,1740845597288,-157.030111,0.00043198,120]
[354959064,1740845597314,-1900.0,0.00043466,60]
[354959065,1740845597343,-2000.0,0.00043466,60]
[354959066,1740845597370,-150.030111,0.00043498,120]
[354959067,1740845597396,-2000.0,0.00043513,120]
[354959068,1740845597423,-1680.92,0.00043562,30]
[354959069,1740845597449,-178.03825282,0.00043562,120]
[354959070,1740845597475,-211.08637603,0.000437,120]
[354959071,1740845597501,-500.0,0.0004374,60]
[354959072,1740845597528,-157.030111,0.00043798,120]
[354959073,1740845597556,-3362.09080526,0.000438,120]
[354959074,1740845597583,-1088.819727,0.00043835,90]
[354959075,1740845597611,-400.72096069,0.00043836,31]
[354959076,1740845597637,-344.44,0.00043836,30]
[354959077,1740845597666,-500.0,0.00044,120]
[354959078,1740845597696,-1394.8505635,0.00044,30]
[354959079,1740845597722,-1000.0,0.00044,120]
[354959080,1740845597749,-516.011485,0.00044,57]
[354959081,1740845597776,-161.030111,0.00044198,120]
[354959082,1740845597803,-187.78020177,0.000443,120]
[354959083,1740845597831,-153.92584608,0.000444,120]
[354959084,1740845597857,-153.92584601,0.000444,120]
[354959085,1740845597886,-153.92584601,0.000444,120]
[354959086,1740845597916,-153.92584601,0.000444,120]
[354959087,1740845597944,-153.92584601,0.000444,120]
[354959088,1740845597972,-153.92584601,0.000444,120]
[354959089,1740845597999,-153.92584601,0.000444,120]
[354959090,1740845598026,-153.92584601,0.000444,120]
[354959091,1740845598054,-153.92584601,0.000444,120]
[354959092,1740845598084,-150.030111,0.00044498,120]
[354959093,1740845598112,-560.06218104,0.00044562,120]
[354959094,1740845598141,-1039.74957003,0.00044562,120]
[354959095,1740845598170,-783.0,0.000446,30]
[354959096,1740845598200,-988.32,0.000447,36]
[354959097,1740845598231,-988.32,0.000447,36]
[354959098,1740845598261,-988.32,0.000447,36]
[354959099,1740845598292,-988.32,0.000447,36]
[354959100,1740845598324,-988.32,0.000447,36]
[354959101,1740845598357,-988.32,0.000447,36]
[354959102,1740845598388,-988.32,0.000447,36]
[354959103,1740845598419,-988.32,0.000447,36]
[354959104,1740845598621,-988.32,0.000447,36]
[354959105,1740845598653,-988.32,0.000447,36]
[354959106,1740845598685,-988.32,0.000447,36]
[354959107,1740845598716,-988.32,0.000447,36]
[354959108,1740845598748,-164.030111,0.00044798,120]
[354959109,1740845598775,-500.0,0.00044836,120]
[354959110,1740845598803,-204.2,0.000449,37]
[354959111,1740845598832,-1981.0,0.0004497,52]
[354959112,1740845598859,-5000.0,0.00044987,120]
[354959113,1740845598890,-310.75025393,0.00044999,30]
[354959114,1740845598921,-150.0,0.00044999,30]
[354959115,1740845598949,-150.0,0.00044999,30]
[354959116,1740845598979,-172.77266413,0.00044999,30]
[354959117,1740845599008,-150.0,0.00044999,30]
[354959118,1740845599036,-150.0,0.00044999,30]
[354959119,1740845599063,-1185.86042353,0.00045,120]
[354959120,1740845599092,-550.0,0.00045,120]
[354959121,1740845599120,-500.0,0.00045,120]
[354959122,1740845599147,-158.0,0.00045,85]
[354959123,1740845599174,-933.36878721,0.00045,120]
[354959124,1740845599200,-1000.0,0.00045,120]
[354959125,1740845599227,-151.0,0.00045,120]
[354959126,1740845599254,-4435.251492,0.00045,120]
[354959127,1740845599281,-8002.36319909,0.00045,120]
[354959128,1740845599309,-151.0,0.00045,120]
[354959129,1740845599336,-1088.771028,0.00045013,120]
[354959130,1740845599364,-310.75025393,0.00045075,30]
[354959131,1740845599390,-172.77266413,0.00045075,30]
[354959132,1740845599416,-150.0,0.00045116,30]
[354959133,1740845599442,-310.75025393,0.00045151,30]
[354959134,1740845599467,-172.77266413,0.00045151,30]
[354959135,1740845599493,-1061.0,0.00045203,30]
[354959136,1740845599519,-310.75025393,0.00045226,30]
[354959137,1740845599545,-172.77266413,0.00045226,30]
[354959138,1740845599571,-150.0,0.00045233,30]
[354959139,1740845599597,-150.0,0.00045288,30]
[354959140,1740845599625,-310.75025393,0.00045302,30]
[354959141,1740845599653,-172.77266413,0.00045302,30]
[354959142,1740845599680,-150.0,0.00045351,30]
[354959143,1740845599707,-310.75025393,0.00045378,30]
[354959144,1740845599734,-172.77266413,0.00045378,30]
[354959145,1740845599762,-500.0,0.00045384,120]
[354959146,1740845599790,-310.75025393,0.00045454,30]
[354959147,1740845599819,-172.77266413,0.00045454,30]
[354959148,1740845599847,-150.0,0.00045468,30]
[354959149,1740845599875,-310.75025393,0.00045529,30]
[354959150,1740845599906,-172.77266413,0.00045529,30]
[354959151,1740845599935,-150.0,0.00045576,30]
[354959152,1740845599964,-150.0,0.00045585,30]
[354959153,1740845599992,-5011.69479,0.00045589,30]
[354959154,1740845600021,-310.75025393,0.00045605,30]
[354959155,1740845600048,-172.77266413,0.00045605,30]
[354959156,1740845600077,-150.0,0.00045626,120]
[354959157,1740845600104,-310.75025393,0.00045681,30]
[354959158,1740845600131,-172.77266413,0.00045681,30]
[354959159,1740845600157,-320.60325663,0.000457,120]
[354959160,1740845600184,-150.0,0.00045702,30]
[354959161,1740845600212,-310.75025393,0.00045757,30]
[354959162,1740845600239,-172.77266413,0.00045757,30]
[354959163,1740845600266,-150.0,0.00045819,30]
[354959164,1740845600293,-310.75025393,0.00045832,30]
[354959165,1740845600319,-172.77266413,0.00045832,30]
[354959166,1740845600346,-150.0,0.00045865,30]
[354959167,1740845600371,-10000.0,0.000459,120]
[354959168,1740845600398,-310.75025393,0.00045908,30]
[354959169,1740845600425,-172.77266413,0.00045908,30]
[354959170,1740845600450,-500.0,0.00045932,120]
[354959171,1740845600476,-150.0,0.00045937,30]
[354959172,1740845600504,-310.75025393,0.00045984,30]
[354959173,1740845600530,-172.77266413,0.00045984,30]
[354959174,1740845600558,-500.0,0.00046,120]
[354959175,1740845600586,-2000.0,0.00046,120]
[354959176,1740845600614,-1546.97,0.00046,120]
[354959177,1740845600640,-878.16730281,0.00046,120]
[354959178,1740845600666,-150.0,0.00046054,30]
[354959179,1740845600693,-310.75025393,0.0004606,30]
[354959180,1740845600720,-172.77266413,0.0004606,30]
[354959181,1740845600748,-310.75025393,0.00046136,30]
[354959182,1740845600778,-172.77266413,0.00046136,30]
[354959183,1740845600804,-150.0,0.00046153,30]
[354959184,1740845600831,-150.0,0.00046171,30]
[354959185,1740845600858,-310.75025393,0.00046211,30]
[354959186,1740845600886,-172.77266413,0.00046211,30]
[354959187,1740845600917,-310.75025393,0.00046287,30]
[354959188,1740845600944,-172.77266413,0.00046287,30]
[354959189,1740845600972,-150.0,0.00046288,30]
[354959190,1740845600998,-150.0,0.00046301,30]
[354959191,1740845601027,-310.75025393,0.00046363,30]
[354959192,1740845601055,-172.77266413,0.00046363,30]
[354959193,1740845601083,-150.0,0.00046405,30]
[354959194,1740845601110,-310.75025393,0.00046439,30]
[354959195,1740845601138,-172.77266413,0.00046439,30]
[354959196,1740845601164,-150.0,0.00046442,30]
[354959197,1740845601190,-500.0,0.0004648,120]
[354959198,1740845601220,-310.75025393,0.00046514,30]
[354959199,1740845601407,-172.77266413,0.00046514,30]
[354959200,1740845601435,-150.0,0.00046523,30]
[354959201,1740845601461,-310.75025393,0.0004659,30]
[354959202,1740845601488,-172.77266413,0.0004659,30]
[354959203,1740845601514,-150.0,0.0004664,30]
[354959204,1740845601541,-310.75025393,0.00046666,30]
[354959205,1740845601568,-172.77266413,0.00046666,30]
[354959206,1740845601596,-150.0,0.0004673,30]
[354959207,1740845601625,-310.75025393,0.00046742,30]
[354959208,1740845601653,-172.77266413,0.00046742,30]
[354959209,1740845601681,-150.0,0.00046757,30]
[354959210,1740845601712,-310.75025393,0.00046817,30]
[354959211,1740845601740,-172.77266413,0.00046817,30]
[354959212,1740845601766,-150.0,0.00046874,30]
[354959213,1740845601796,-151.0,0.00046877,120]
[354959214,1740845601823,-310.75025393,0.00046893,30]
[354959215,1740845601851,-172.77266413,0.00046893,30]
[354959216,1740845601877,-310.75025393,0.00046969,30]
[354959217,1740845601909,-172.77266413,0.00046969,30]
[354959218,1740845601937,-150.0,0.00046991,30]
[354959219,1740845601964,-30174.5267234,0.00047,60]
[354959220,1740845601992,-166.0,0.00047,90]
[354959221,1740845602019,-150.0,0.00047018,30]
[354959222,1740845602045,-292.03010347,0.00047028,120]
[354959223,1740845602073,-310.75025393,0.00047045,30]
[354959224,1740845602100,-172.77266413,0.00047045,30]
[354959225,1740845602127,-150.0,0.00047109,30]
[354959226,1740845602153,-310.75025393,0.0004712,30]
[354959227,1740845602179,-172.77266413,0.0004712,30]
[354959228,1740845602205,-150.0,0.00047123,30]
[354959229,1740845602231,-150.0,0.00047123,30]
[354959230,1740845602258,-150.0,0.00047123,30]
[354959231,1740845602284,-150.0,0.00047123,30]
[354959232,1740845602311,-150.0,0.00047123,30]
[354959233,1740845602338,-150.0,0.00047123,30]
[354959234,1740845602364,-150.0,0.00047123,30]
[354959235,1740845602391,-150.0,0.00047123,30]
[354959236,1740845602416,-150.0,0.00047123,30]
[354959237,1740845602442,-150.0,0.00047123,30]
[354959238,1740845602468,-150.0,0.00047123,30]
[354959239,1740845602493,-150.0,0.00047123,30]
[354959240,1740845602520,-150.0,0.00047123,30]
[354959241,1740845602545,-150.0,0.00047123,30]
[354959242,1740845602571,-150.0,0.00047123,30]
[354959243,1740845602597,-150.0,0.00047123,30]
[354959244,1740845602624,-150.0,0.00047123,30]
[354959245,1740845602650,-344.44,0.00047123,30]
[354959246,1740845602676,-310.75025393,0.00047196,30]
[354959247,1740845602702,-172.77266413,0.00047196,30]
[354959248,1740845602728,-150.0,0.00047226,30]
[354959249,1740845602756,-310.75025393,0.00047272,30]
[354959250,1740845602783,-172.77266413,0.00047272,30]
[354959251,1740845602809,-150.0,0.00047307,30]
[354959252,1740845602836,-150.0,0.00047343,30]
[354959253,1740845602864,-310.75025393,0.00047348,30]
[354959254,1740845602892,-172.77266413,0.00047348,30]
[354959255,1740845602921,-310.75025393,0.00047424,30]
[354959256,1740845602949,-172.77266413,0.00047424,30]
[354959257,1740845602976,-150.0,0.0004746,30]
[354959258,1740845603003,-1061.0,0.00047463,30]
[354959259,1740845603030,-310.75025393,0.00047499,30]
[354959260,1740845603058,-172.77266413,0.00047499,30]
[354959261,1740845603085,-217.27897457,0.000475,120]
[354959262,1740845603112,-310.75025393,0.00047575,30]
[354959263,1740845603137,-172.77266413,0.00047575,30]
[354959264,1740845603162,-150.0,0.00047577,30]
[354959265,1740845603187,-150.0,0.00047595,30]
[354959266,1740845603214,-310.75025393,0.00047651,30]
[354959267,1740845603239,-172.77266413,0.00047651,30]
[354959268,1740845603265,-150.0,0.00047695,30]
[354959269,1740845603293,-2000.0,0.000477,120]
[354959270,1740845603318,-2000.0,0.000477,120]
[354959271,1740845603345,-312.0,0.000477,120]
[354959272,1740845603372,-310.75025393,0.00047727,30]
[354959273,1740845603400,-172.77266413,0.00047727,30]
[354959274,1740845603426,-310.75025393,0.00047802,30]
[354959275,1740845603452,-172.77266413,0.00047802,30]
[354959276,1740845603477,-150.0,0.00047812,30]
[354959277,1740845603503,-310.75025393,0.00047878,30]
[354959278,1740845603529,-172.77266413,0.00047878,30]
[354959279,1740845603554,-150.0,0.00047884,30]
[354959280,1740845603580,-10000.0,0.000479,120]
[354959281,1740845603605,-150.0,0.00047929,30]
[354959282,1740845603631,-310.75025393,0.00047954,30]
[354959283,1740845603657,-172.77266413,0.00047954,30]
[354959284,1740845603684,-500.0,0.00048,120]
[354959285,1740845603710,-2000.0,0.00048,120]
[354959286,1740845603736,-878.16730282,0.00048,120]
[354959287,1740845603763,-310.75025393,0.0004803,30]
[354959288,1740845603791,-172.77266413,0.0004803,30]
[354959289,1740845603818,-150.0,0.00048046,30]
[354959290,1740845603845,-1071.218,0.00048047,82]
[354959291,1740845603875,-150.0,0.00048058,120]
[354959292,1740845603906,-310.75025393,0.00048105,30]
[354959293,1740845603935,-172.77266413,0.00048105,30]
[354959294,1740845604200,-150.0,0.00048163,30]
[354959295,1740845604228,-150.0,0.00048173,30]
[354959296,1740845604255,-310.75025393,0.00048181,30]
[354959297,1740845604283,-172.77266413,0.00048181,30]
[354959298,1740845604310,-310.75025393,0.00048257,30]
[354959299,1740845604336,-172.77266413,0.00048257,30]
[354959300,1740845604363,-150.0,0.00048281,30]
[354959301,1740845604390,-310.75025393,0.00048333,30]
[354959302,1740845604418,-172.77266413,0.00048333,30]
[354959303,1740845604445,-150.0,0.00048398,30]
[354959304,1740845604473,-310.75025393,0.00048409,30]
[354959305,1740845604500,-172.77266413,0.00048409,30]
[354959306,1740845604526,-5011.69479,0.00048438,30]
[354959307,1740845604554,-150.0,0.00048461,30]
[354959308,1740845604582,-310.75025393,0.00048484,30]
[354959309,1740845604608,-172.77266413,0.00048484,30]
[354959310,1740845604635,-150.0,0.00048515,30]
[354959311,1740845604662,-310.75025393,0.0004856,30]
[354959312,1740845604690,-172.77266413,0.0004856,30]
[354959313,1740845604720,-988.32,0.000486,45]
[354959314,1740845604752,-988.32,0.000486,45]
[354959315,1740845604783,-988.32,0.000486,45]
[354959316,1740845604815,-988.32,0.000486,45]
[354959317,1740845604848,-988.32,0.000486,45]
[354959318,1740845604879,-988.32,0.000486,45]
[354959319,1740845604913,-988.32,0.000486,45]
[354959320,1740845604944,-988.32,0.000486,45]
[354959321,1740845604977,-988.32,0.000486,45]
[354959322,1740845605011,-988.32,0.000486,45]
[354959323,1740845605044,-988.32,0.000486,45]
[354959324,1740845605077,-988.32,0.000486,45]
[354959325,1740845605110,-988.32,0.000486,45]
[354959326,1740845605141,-988.32,0.000486,45]
[354959327,1740845605171,-988.32,0.000486,45]
[354959328,1740845605203,-988.32,0.000486,45]
[354959329,1740845605234,-988.32,0.000486,45]
[354959330,1740845605264,-988.32,0.000486,45]
[354959331,1740845605295,-988.32,0.000486,45]
[354959332,1740845605327,-988.32,0.000486,45]
[354959333,1740845605360,-988.32,0.000486,45]
[354959334,1740845605393,-988.32,0.000486,45]
[354959335,1740845605424,-988.32,0.000486,45]
[354959336,1740845605455,-988.32,0.000486,45]
[354959337,1740845605482,-150.0,0.00048632,30]
[354959338,1740845605509,-310.75025393,0.00048636,30]
[354959339,1740845605536,-172.77266413,0.00048636,30]
[354959340,1740845605564,-310.75025393,0.00048712,30]
[354959341,1740845605593,-172.77266413,0.00048712,30]
[354959342,1740845605621,-151.0,0.0004874,120]
[354959343,1740845605650,-150.0,0.0004875,30]
[354959344,1740845605679,-150.0,0.0004875,30]
[354959345,1740845605708,-150.0,0.0004875,30]
[354959346,1740845605736,-310.75025393,0.00048787,30]
[354959347,1740845605765,-172.77266413,0.00048787,30]
[354959348,1740845605793,-6470.72767012,0.000488,120]
[354959349,1740845605826,-2647.3556566,0.000488,120]
[354959350,1740845605855,-851.92019178,0.000488,120]
[354959351,1740845605884,-440.25132704,0.000488,120]
[354959352,1740845605917,-23569.00466826,0.000488,120]
[354959353,1740845605946,-150.0,0.00048817,120]
[354959354,1740845605976,-310.75025393,0.00048863,30]
[354959355,1740845606006,-172.77266413,0.00048863,30]
[354959356,1740845606034,-150.0,0.00048867,30]
[354959357,1740845606062,-198.92981665,0.0004888,120]
[354959358,1740845606091,-166.0,0.00048904,90]
[354959359,1740845606120,-310.75025393,0.00048939,30]
[354959360,1740845606150,-172.77266413,0.00048939,30]
[354959361,1740845606179,-150.0,0.00048984,30]
[354959362,1740845606207,-320.0,0.00049,120]
[354959363,1740845606235,-2000.0,0.00049,120]
[354959364,1740845606263,-24336.67936179,0.00049,30]
[354959365,1740845606291,-310.75025393,0.00049015,30]
[354959366,1740845606318,-172.77266413,0.00049015,30]
[354959367,1740845606347,-150.0,0.00049038,30]
[354959368,1740845606375,-310.75025393,0.0004909,30]
[354959369,1740845606402,-172.77266413,0.0004909,30]
[354959370,1740845606429,-150.0,0.00049101,30]
[354959371,1740845606457,-310.75025393,0.00049166,30]
[354959372,1740845606487,-172.77266413,0.00049166,30]
[354959373,1740845606514,-1515.94741789,0.000492,120]
[354959374,1740845606541,-1515.94741789,0.000492,120]
[354959375,1740845606569,-1515.94741789,0.000492,120]
[354959376,1740845606597,-1515.94741789,0.000492,120]
[354959377,1740845606625,-1515.94741789,0.000492,120]
[354959378,1740845606651,-1515.94741789,0.000492,120]
[354959379,1740845606680,-1515.94741789,0.000492,120]
[354959380,1740845606710,-1515.94741789,0.000492,120]
[354959381,1740845606738,-1515.94741789,0.000492,120]
[354959382,1740845606766,-1515.94741789,0.000492,120]
[354959383,1740845606794,-1515.94741789,0.000492,120]
[354959384,1740845606822,-1515.94741789,0.000492,120]
[354959385,1740845606851,-787.31455275,0.000492,120]
[354959386,1740845606879,-150.0,0.00049218,30]
[354959387,1740845606908,-236.24352356,0.00049224,45]
[354959388,1740845607109,-310.75025393,0.00049242,30]
[354959389,1740845607138,-172.77266413,0.00049242,30]
[354959390,1740845607167,-1515.94741789,0.000493,120]
[354959391,1740845607196,-1515.94741789,0.000493,120]
[354959392,1740845607252,-1515.94741789,0.000493,120]
[354959393,1740845607282,-1515.94741789,0.000493,120]
[354959394,1740845607310,-1515.94741789,0.000493,120]
[354959395,1740845607338,-1515.94741789,0.000493,120]
[354959396,1740845607366,-1386.33,0.00049315,120]
[354959397,1740845607394,-1386.33,0.00049315,120]
[354959398,1740845607421,-1386.33,0.00049315,120]
[354959399,1740845607448,-1386.33,0.00049315,120]
[354959400,1740845607474,-1386.33,0.00049315,120]
[354959401,1740845607500,-1386.33,0.00049315,120]
[354959402,1740845607527,-1386.33,0.00049315,120]
[354959403,1740845607555,-1386.33,0.00049315,120]
[354959404,1740845607583,-1386.33,0.00049315,120]
[354959405,1740845607613,-1386.33,0.00049315,120]
[354959406,1740845607644,-1386.33,0.00049315,120]
[354959407,1740845607674,-1386.33,0.00049315,120]
[354959408,1740845607702,-1386.33,0.00049315,120]
[354959409,1740845607730,-1386.33,0.00049315,120]
[354959410,1740845607758,-1386.33,0.00049315,120]
[354959411,1740845607787,-1386.33,0.00049315,120]
[354959412,1740845607815,-1386.33,0.00049315,120]
[354959413,1740845607844,-1386.33,0.00049315,120]
[354959414,1740845607872,-1386.33,0.00049315,120]
[354959415,1740845607904,-1386.33,0.00049315,120]
[354959416,1740845607932,-1386.33,0.00049315,120]
[354959417,1740845607961,-1386.33,0.00049315,120]
[354959418,1740845607990,-1386.33,0.00049315,120]
[354959419,1740845608019,-1386.40517812,0.00049315,120]
[354959420,1740845608046,-876.05,0.00049315,30]
[354959421,1740845608075,-500.0,0.00049315,30]
[354959422,1740845608103,-310.75025393,0.00049318,30]
[354959423,1740845608133,-172.77266413,0.00049318,30]
[354959424,1740845608160,-150.0,0.00049327,30]
[354959425,1740845608188,-150.0,0.00049336,30]
[354959426,1740845608216,-310.75025393,0.00049394,30]
[354959427,1740845608244,-172.77266413,0.00049394,30]
[354959428,1740845608272,-375.0,0.000494,120]
[354959429,1740845608300,-350.0,0.000494,120]
[354959430,1740845608327,-150.0,0.00049453,30]
[354959431,1740845608355,-310.75025393,0.00049469,30]
[354959432,1740845608382,-172.77266413,0.00049469,30]
[354959433,1740845608408,-1515.94741789,0.000495,120]
[354959434,1740845608435,-1515.94741789,0.000495,120]
[354959435,1740845608461,-1515.94741789,0.000495,120]
[354959436,1740845608486,-1515.94741789,0.000495,120]
[354959437,1740845608512,-1515.94741789,0.000495,120]
[354959438,1740845608537,-1515.94741789,0.000495,120]
[354959439,1740845608563,-1515.94741789,0.000495,120]
[354959440,1740845608588,-1515.94741789,0.000495,120]
[354959441,1740845608614,-310.75025393,0.00049545,30]
[354959442,1740845608640,-172.77266413,0.00049545,30]
[354959443,1740845608665,-150.0,0.0004957,30]
[354959444,1740845608692,-349.60571426,0.000496,120]
[354959445,1740845608718,-150.0,0.00049615,30]
[354959446,1740845608746,-310.75025393,0.00049621,30]
[354959447,1740845608774,-172.77266413,0.00049621,30]
[354959448,1740845608801,-150.0,0.00049687,30]
[354959449,1740845608830,-310.75025393,0.00049697,30]
[354959450,1740845608857,-172.77266413,0.00049697,30]
[354959451,1740845608886,-310.75025393,0.00049772,30]
[354959452,1740845608916,-172.77266413,0.00049772,30]
[354959453,1740845608943,-182.80122767,0.000498,30]
[354959454,1740845608970,-150.0,0.00049804,30]
[354959455,1740845608998,-1061.0,0.00049836,30]
[354959456,1740845609025,-310.75025393,0.00049848,30]
[354959457,1740845609052,-172.77266413,0.00049848,30]
[354959458,1740845609080,-2000.0,0.0004987,120]
[354959459,1740845609109,-150.0,0.00049878,120]
[354959460,1740845609137,-1682.0,0.00049899,120]
[354959461,1740845609166,-1682.0,0.00049899,120]
[354959462,1740845609195,-1682.0,0.00049899,120]
[354959463,1740845609222,-1682.0,0.00049899,120]
[354959464,1740845609251,-1682.0,0.00049899,120]
[354959465,1740845609278,-1682.0,0.00049899,120]
[354959466,1740845609306,-124902.96553749,0.000499,120]
[354959467,1740845609334,-150.0,0.00049904,30]
[354959468,1740845609363,-150.0,0.00049922,30]
[354959469,1740845609391,-310.75025393,0.00049924,30]
[354959470,1740845609419,-172.77266413,0.00049924,30]
[354959471,1740845609447,-6000.0,0.00049939,120]
[354959472,1740845609476,-100000.0,0.0005,34]
[354959473,1740845609503,-310.75025393,0.0005,30]
[354959474,1740845609531,-172.77266413,0.0005,30]
[354959475,1740845609559,-1000000.0,0.0005,120]
[354959476,1740845609588,-406305.37174585,0.0005,120]
[354959481,1740845884678,902.23,0.00014851,2]
[354959488,1740846132145,-510.215773,0.00041904,120]
[354959489,1740846132178,-274.0,0.00042,90]
[354959490,1740846132207,-150.35,0.00042192,30]
[354959491,1740846132235,-1061.0,0.00042869,30]
[354959492,1740846132268,-642.69,0.000447,36]
[354959493,1740846132302,-642.69,0.000447,36]
[354959494,1740846132335,-642.69,0.000447,36]
[354959495,1740846132375,-642.69,0.000447,36]
[354959496,1740846132409,-642.69,0.000447,36]
[354959497,1740846132442,-642.69,0.000447,36]
[354959498,1740846132474,-642.69,0.000447,36]
[354959499,1740846132507,-642.69,0.000447,36]
[354959500,1740846132539,-642.69,0.000447,36]
[354959501,1740846132577,-642.69,0.000447,36]
[354959502,1740846132609,-642.69,0.000447,36]
[354959503,1740846132643,-642.69,0.000447,36]
[354959504,1740846132672,-150.0,0.00045,85]
[354959505,1740846132701,-1061.0,0.00045125,30]
[354959506,1740846132730,-500.0,0.00046164,120]
[354959507,1740846132758,-500.0,0.00046164,120]
[354959508,1740846132786,-500.0,0.00046712,120]
[354959509,1740846132816,-500.0,0.00046712,120]
[354959510,1740846132845,-166.0,0.00047,90]
[354959511,1740846132874,-500.0,0.0004726,120]
[354959512,1740846132903,-500.0,0.0004726,120]
[354959513,1740846132931,-1061.0,0.000475,30]
[354959514,1740846132962,-856.974,0.00047779,81]
[354959515,1740846132990,-400.0,0.00047808,120]
[354959516,1740846133020,-500.0,0.00047808,120]
[354959517,1740846133049,-2110.0,0.000485,30]
[354959518,1740846133085,-642.69,0.000486,45]
[354959519,1740846133117,-642.69,0.000486,45]
[354959520,1740846133149,-642.69,0.000486,45]
[354959521,1740846133184,-642.69,0.000486,45]
[354959522,1740846133217,-642.69,0.000486,45]
[354959523,1740846133249,-642.69,0.000486,45]
[354959524,1740846133279,-642.69,0.000486,45]
[354959525,1740846133311,-642.69,0.000486,45]
[354959526,1740846133343,-642.69,0.000486,45]
[354959527,1740846133378,-642.69,0.000486,45]
[354959528,1740846133410,-642.69,0.000486,45]
[354959529,1740846133690,-642.69,0.000486,45]
[354959530,1740846133724,-642.69,0.000486,45]
[354959531,1740846133758,-642.69,0.000486,45]
[354959532,1740846133790,-642.69,0.000486,45]
[354959533,1740846133821,-642.69,0.000486,45]
[354959534,1740846133853,-642.69,0.000486,45]
[354959535,1740846133886,-642.69,0.000486,45]
[354959536,1740846133919,-642.69,0.000486,45]
[354959537,1740846133953,-642.69,0.000486,45]
[354959538,1740846133987,-642.69,0.000486,45]
[354959539,1740846134020,-642.69,0.000486,45]
[354959540,1740846134052,-642.69,0.000486,45]
[354959541,1740846134087,-642.69,0.000486,45]
[354959542,1740846134122,-166.0,0.00048904,90]
[354959543,1740846134159,-2110.0,0.00049,30]
[354959544,1740846134197,-1000.0,0.00049315,120]
[354959545,1740846134232,-500.0,0.00049315,30]
[354959546,1740846134267,-2110.0,0.000495,30]
[354959547,1740846134307,-1000.0,0.00049615,30]
[354959548,1740846134349,-386.48899129,0.00049684,120]
[354959549,1740846134386,-150.0,0.00049823,30]
[354959550,1740846134429,-1000.0,0.00049851,30]
[354959551,1740846134463,-5000.0,0.00049899,120]